bitfinex-derivatives/quotes_ETHF0:USTF0_20251031
["timestamp","ask_amount","ask_price","bid_price","bid_amount"]
[1761916995434,6.8862,3861.5,3861.4,40.8]
[1761916995634,4.7361,3861.5,3861.4,40.8]
[1761916995939,4.7361,3861.5,3861.4,50.772]
[1761916996142,4.7361,3861.5,3861.4,40.8]
[1761916996332,4.7361,3861.5,3861.4,50.767]
[1761916996735,9.1972,3861.5,3861.4,40.8]
[1761916997037,7.8982,3861.2,3861.1,0.00205524]
[1761916997239,7.8982,3861.2,3861.1,3.80705524]
[1761916997540,7.8982,3861.2,3861.1,44.60705524]
[1761916997732,7.8982,3861.2,3861.1,50.76105524]
[1761916998136,7.8982,3861.2,3861.1,0.00205524]
[1761917001652,3.4371,3859.8,3859.7,2.92790909]
[1761917002035,3.4371,3859.8,3859.7,0.02590909]
[1761917002338,7.8982,3859.8,3859.7,0.02590909]
[1761917002542,11.106,3859.8,3859.7,0.02816062]
[1761917003141,3.2983,3858.4,3858.3,3.2078]
[1761917003345,5.5003,3858.4,3858.3,3.2078]
[1761917003539,3.2983,3858.2,3857.8,0.32672]
[1761917003742,1.3427,3858.0,3857.9,3.047]
[1761917003944,1.3427,3858.0,3857.9,40.8]
[1761917004142,0.00242079,3858.0,3857.9,40.80211164]
[1761917004947,3.30072079,3858.0,3857.9,50.71511164]
[1761917005143,0.00242079,3858.0,3857.9,50.71511164]
[1761917005341,3.2983,3858.8,3857.9,58.71511164]
[1761917005642,3.2983,3858.8,3858.2,0.32668]
[1761917006047,3.2983,3858.7,3858.4,0.32667]
[1761917006236,3.2983,3858.5,3858.1,0.32669]
[1761917006436,3.2983,3858.5,3858.3,0.32667]
[1761917007336,1.3427,3858.6,3858.5,0.32666]
[1761917007645,0.00291661,3858.7,3858.5,10.21966]
[1761917009439,0.00291661,3858.7,3858.6,40.8]
[1761917013850,3.2983,3859.8,3858.6,40.8]
[1761917014040,3.2983,3859.8,3859.6,0.32657]
[1761917014240,3.2983,3859.8,3859.7,9.843]
[1761917014949,3.30053651,3859.8,3859.7,50.643]
[1761917015143,7.73953651,3859.8,3859.7,50.643]
[1761917015544,7.73953651,3859.8,3859.7,50.645]
[1761917016658,3.30053651,3859.8,3859.7,50.645]
[1761917017051,0.00223651,3859.8,3859.7,50.645]
[1761917021153,0.00223651,3859.8,3859.7,53.8528]
[1761917021744,1.3801,3860.5,3859.9,0.32654]
[1761917021950,5.8056,3860.4,3860.0,9.794]
[1761917022147,3.4809,3860.2,3860.0,10.12054]
[1761917022448,1.3801,3860.5,3860.2,0.32651]
[1761917022653,1.3801,3860.5,3860.3,9.792]
[1761917022854,4.86368516,3860.5,3860.3,9.792]
[1761917023056,4.86368516,3860.5,3860.4,40.8]
[1761917023847,0.00268516,3860.5,3860.4,40.8]
[1761917025251,0.00268516,3860.5,3860.4,41.49347429]
[1761917025449,0.00268516,3860.5,3860.4,41.81997429]
[1761917025755,0.00268516,3860.5,3860.4,42.04989494]
[1761917025955,7.18838516,3860.5,3860.4,51.48939494]
[1761917026357,7.18838516,3860.5,3860.4,50.566]
[1761917026656,9.48318516,3860.5,3860.4,50.566]
[1761917028254,9.48318516,3860.5,3860.4,41.72710463]
[1761917028460,9.48318516,3860.5,3858.4,0.81667]
[1761917028461,8.1004,3860.2,3860.1,0.92710463]
[1761917028754,8.1004,3860.2,3860.1,9.747]
[1761917029351,8.1004,3860.2,3860.1,10.67410463]
[1761917030147,8.1004,3860.2,3860.1,0.92710463]
[1761917030344,1.3801,3860.0,3859.8,0.69572656]
[1761917030548,1.3801,3860.0,3859.7,0.69572656]
[1761917030549,4.6195,3859.8,3859.7,0.69572656]
[1761917030746,4.6195,3859.7,3859.6,41.49572656]
[1761917030951,8.1004,3859.7,3859.6,41.49572656]
[1761917031263,8.1004,3859.6,3859.5,0.69572656]
[1761917031450,8.1004,3859.2,3859.1,0.69572656]
[1761917031662,8.1004,3859.2,3858.9,0.92710463]
[1761917031663,8.1004,3859.1,3858.9,0.69572656]
[1761917031857,4.6195,3858.8,3858.7,41.72710463]
[1761917032057,8.1004,3858.8,3858.7,41.72710463]
[1761917032549,3.4809,3858.8,3858.7,51.45510463]
[1761917032755,3.4809,3858.9,3858.7,50.528]
[1761917032955,3.4809,3858.9,3858.8,0.92783808]
[1761917033354,6.6887,3859.2,3858.7,50.528]
[1761917033557,6.6887,3859.2,3859.0,0.927871]
[1761917033763,6.6887,3859.2,3859.1,9.722]
[1761917034264,5.8056,3859.1,3859.0,0.927871]
[1761917034465,5.8056,3859.1,3859.0,10.643871]
[1761917034667,5.8056,3859.1,3859.0,9.716]
[1761917035963,3.4809,3858.9,3858.8,1.38212524]
[1761917036163,4.861,3859.0,3858.8,11.42576524]
[1761917036357,4.861,3859.0,3858.9,11.09780466]
[1761917037360,3.4809,3859.1,3859.0,0.32662]
[1761917037963,3.4809,3859.1,3858.9,11.42442466]
[1761917038366,3.4809,3859.1,3858.9,11.09780466]
[1761917038668,3.4809,3859.1,3859.0,1.39280466]
[1761917039658,5.8056,3859.1,3859.0,1.39280466]
[1761917039966,8.1004,3859.1,3859.0,1.39280466]
[1761917040268,4.861,3859.5,3858.9,9.705]
[1761917040565,4.861,3859.5,3859.3,1.39338284]
[1761917040766,4.861,3859.5,3859.4,9.678]
[1761917041064,4.861,3859.5,3859.4,11.07138284]
[1761917041267,6.6887,3859.7,3859.5,0.32658]
[1761917041468,3.4809,3859.6,3859.5,1.39323278]
[1761917042369,5.8056,3859.6,3859.5,1.39323278]
[1761917043859,3.4809,3859.6,3859.5,1.71981278]
[1761917044166,3.4809,3859.6,3859.5,0.32658]
[1761917044868,1.3801,3860.0,3859.8,0.32655]
[1761917045070,4.861,3860.0,3859.9,9.655]
[1761917046365,7.1857,3860.0,3859.9,9.655]
[1761917046570,8.1004,3859.7,3859.6,1.86223404]
[1761917046772,8.1004,3859.6,3859.5,1.86223404]
[1761917047068,8.1004,3859.6,3859.5,50.442]
[1761917047870,3.4809,3859.9,3859.8,0.32655]
[1761917048066,3.4809,3859.9,3859.8,9.96855]
[1761917048874,3.4809,3859.9,3859.8,50.76855]
[1761917049571,3.4809,3859.9,3859.8,50.442]
[1761917049872,1.3801,3860.0,3859.8,50.76855]
[1761917050069,4.861,3860.0,3859.8,50.442]
[1761917050268,4.861,3860.0,3859.8,50.76855]
[1761917050574,3.4809,3859.9,3859.8,50.442]
[1761917050876,5.8056,3859.9,3859.8,50.442]
[1761917051065,5.8056,3859.9,3859.8,40.8]
[1761917051271,5.8056,3859.9,3859.8,50.433]
[1761917052875,3.4809,3859.9,3859.8,50.433]
[1761917053075,6.6559,3860.2,3859.9,0.32654]
[1761917053270,3.2078,3860.2,3860.1,1.39174331]
[1761917053470,3.2078,3860.2,3860.1,9.632]
[1761917053471,5.5212,3860.2,3860.1,9.632]
[1761917053773,8.9693,3860.2,3860.1,9.632]
[1761917054184,6.6559,3860.2,3860.1,9.632]
[1761917054579,8.9693,3860.2,3860.1,9.632]
[1761917056069,5.7615,3860.2,3860.1,9.632]
[1761917056776,8.0306,3859.9,3859.8,42.66223404]
[1761917056976,8.0306,3859.9,3859.8,52.29323404]
[1761917057673,8.0306,3859.9,3859.8,42.66223404]
[1761917057869,8.0306,3859.9,3859.8,50.431]
[1761917061169,8.0306,3859.9,3859.8,40.8]
[1761917061374,7.7535,3859.3,3859.2,1.86223404]
[1761917061674,7.7535,3859.2,3859.1,1.86223404]
[1761917061871,7.7535,3859.2,3859.1,11.49223404]
[1761917062779,7.7535,3859.2,3859.1,52.29223404]
[1761917064279,7.7535,3859.2,3859.1,40.8]
[1761917064475,7.7535,3858.8,3858.7,1.86223404]
[1761917064674,7.7535,3858.6,3858.5,3.2078]
[1761917064883,1.3385,3859.0,3858.5,40.8]
[1761917065183,4.3791,3858.9,3858.8,1.39552759]
[1761917065483,7.7535,3858.9,3858.8,1.39552759]
[1761917066777,7.7535,3858.6,3858.5,40.8]
[1761917066983,7.7535,3858.6,3858.5,50.43]
[1761917069196,3.3744,3858.6,3858.5,50.43]
[1761917070987,3.3744,3858.6,3858.5,53.96446]
[1761917071288,3.3744,3858.6,3858.5,53.6378]
[1761917074388,9.629,3859.6,3858.5,53.6378]
[1761917074389,3.3744,3859.8,3858.5,44.0078]
[1761917074597,7.7535,3859.3,3859.1,0.92670931]
[1761917074891,7.7535,3858.7,3858.3,1.86223404]
[1761917075094,3.3744,3858.4,3858.3,1.86223404]
[1761917075296,4.7129,3858.5,3858.3,9.95468]
[1761917075684,4.7129,3858.5,3858.4,40.8]
[1761917075886,1.3385,3858.5,3858.4,40.8]
[1761917076087,4.7129,3858.5,3858.4,41.12667]
[1761917076299,6.9533,3858.5,3858.4,40.8]
[1761917077800,9.092,3858.5,3858.4,40.8]
[1761917078300,9.092,3858.5,3858.4,50.427]
[1761917078801,9.092,3858.5,3858.4,40.8]
[1761917078991,9.092,3858.5,3858.4,50.427]
[1761917080495,9.092,3858.5,3858.4,50.426]
[1761917081202,9.092,3858.5,3858.4,40.8]
[1761917081391,9.092,3858.5,3858.4,50.426]
[1761917081592,9.092,3858.5,3858.4,51.81782567]
[1761917082593,9.092,3858.5,3858.4,11.01782567]
[1761917082797,9.092,3858.5,3858.4,1.39182567]
[1761917082996,9.092,3858.5,3858.4,11.01682567]
[1761917083799,9.092,3858.5,3858.4,1.39182567]
[1761917084000,9.092,3858.5,3858.4,11.01782567]
[1761917084802,9.092,3858.5,3858.4,11.01682567]
[1761917086201,9.092,3858.5,3858.4,9.625]
[1761917089098,2.3269,3858.2,3858.0,0.18699028]
[1761917089298,6.9923,3858.0,3857.9,0.00211164]
[1761917089503,9.1818,3858.0,3857.9,9.80421795]
[1761917089697,9.1818,3858.0,3857.9,50.42511164]
[1761917090098,9.1818,3858.0,3857.9,52.28417388]
[1761917090394,6.9923,3858.0,3857.9,50.42511164]
[1761917090602,6.9923,3858.0,3857.9,52.28487659]
[1761917091195,6.9923,3858.0,3857.9,50.42511164]
[1761917096113,6.9923,3858.0,3857.9,50.42211164]
[1761917097109,6.9923,3858.0,3857.9,40.80211164]
[1761917097310,6.9923,3858.0,3857.9,50.42111164]
[1761917097614,9.1818,3858.0,3857.9,50.42111164]
[1761917098011,4.6654,3858.0,3857.9,50.42111164]
[1761917098412,6.9923,3858.0,3857.9,50.42111164]
[1761917099730,3.3046,3858.3,3858.1,0.3267]
[1761917099917,3.3046,3858.3,3858.2,12.8258]
[1761917100318,3.3046,3858.4,3858.2,12.8258]
[1761917100628,3.3046,3858.4,3858.2,15.15096043]
[1761917101125,3.3046,3858.4,3858.2,15.47764043]
[1761917101330,3.3046,3858.4,3858.2,15.15096043]
[1761917101625,3.3046,3858.4,3858.2,12.8258]
[1761917102225,3.3046,3858.4,3858.2,15.15096043]
[1761917102421,3.3046,3858.3,3858.2,15.15096043]
[1761917102628,3.3046,3858.3,3858.2,15.14996043]
[1761917102829,7.821,3858.3,3858.2,5.06880216]
[1761917103329,7.821,3858.3,3857.9,0.00211164]
[1761917103330,9.1818,3858.0,3857.9,0.00211164]
[1761917103629,9.1818,3858.0,3857.9,1.39851239]
[1761917104424,9.1818,3858.0,3857.9,0.00211164]
[1761917105323,7.821,3857.1,3857.0,2.32516259]
[1761917105629,5.8772,3856.5,3856.4,14.2749]
[1761917106022,9.1818,3856.5,3856.0,3.39632289]
[1761917106225,7.821,3856.1,3856.0,5.5296]
[1761917106420,7.821,3856.1,3856.0,55.94443567]
[1761917106830,7.821,3856.1,3856.0,46.33143567]
[1761917107022,3.3046,3856.1,3856.0,55.94443567]
[1761917107223,5.87947788,3856.5,3856.4,4.6619]
[1761917107623,9.18407788,3856.5,3856.4,4.6619]
[1761917107824,0.00227788,3856.5,3856.4,14.2739]
[1761917108316,0.00227788,3856.5,3856.4,17.012]
[1761917108516,6.99457788,3856.5,3856.4,17.012]
[1761917109128,6.99457788,3856.5,3856.4,14.2739]
[1761917109426,9.18407788,3856.5,3856.4,4.6619]
[1761917109631,9.18407788,3856.5,3856.4,14.2739]
[1761917110326,9.18407788,3856.5,3856.4,4.6619]
[1761917110631,9.18407788,3856.5,3856.4,14.2729]
[1761917111834,0.00227788,3856.5,3856.4,14.2729]
[1761917112526,3.42217788,3856.5,3856.4,17.0124]
[1761917113025,5.57527788,3856.5,3856.4,17.0124]
[1761917113226,6.89927788,3856.5,3856.4,17.0124]
[1761917113426,6.89927788,3856.5,3856.4,4.6619]
[1761917113728,6.89927788,3856.5,3856.4,14.2719]
[1761917113930,6.89927788,3856.5,3856.4,17.0114]
[1761917114927,6.89927788,3856.5,3856.4,14.2719]
[1761917115230,9.21117788,3856.5,3856.4,14.2719]
[1761917115821,4.53407788,3856.5,3856.3,0.69549948]
[1761917116131,4.465,3856.4,3856.3,13.9971]
[1761917116324,5.573,3856.4,3856.3,13.9971]
[1761917116734,5.573,3856.4,3856.3,16.7366]
[1761917117425,7.8849,3856.4,3856.3,14.69237668]
[1761917117730,7.8849,3856.4,3856.3,12.53177668]
[1761917118434,7.8849,3856.4,3856.3,10.30227668]
[1761917118926,7.8849,3856.4,3856.3,0.69527668]
[1761917119139,8.0301,3856.3,3856.2,0.69527668]
[1761917119334,8.0301,3856.1,3856.0,0.69711235]
[1761917119636,8.0301,3856.1,3856.0,9.60783567]
[1761917120023,8.0301,3856.1,3856.0,0.00183567]
[1761917126733,16.0301,3856.1,3856.0,0.00183567]
[1761917127036,9.4371,3855.5,3855.4,9.604]
[1761917127828,9.4371,3855.5,3855.4,9.6065718]
[1761917128030,9.4371,3855.5,3855.4,11.8583718]
[1761917128638,9.4371,3855.5,3855.4,0.0025718]
[1761917130034,12.6449,3855.5,3855.4,0.0025718]
[1761917130341,1.407,3856.0,3855.4,0.69784848]
[1761917130342,2.2405,3855.9,3855.4,0.69784848]
[1761917130537,4.5115,3855.6,3855.5,2.94707668]
[1761917130833,8.0301,3855.6,3855.5,2.2518]
[1761917131033,8.0301,3855.6,3855.5,11.8498]
[1761917131239,8.0301,3855.6,3855.5,12.54507668]
[1761917131629,8.0301,3855.6,3855.5,0.69527668]
[1761917131832,8.0301,3855.6,3855.5,2.94707668]
[1761917132032,8.0301,3855.6,3855.5,5.26137668]
[1761917132241,8.0301,3855.6,3855.5,4.5661]
[1761917132537,8.0301,3855.6,3855.5,5.49343264]
[1761917133240,8.0301,3855.6,3855.5,4.5661]
[1761917133940,5.9185,3856.0,3855.9,4.5661]
[1761917134438,1.59331515,3857.5,3857.4,2.2518]
[1761917134439,5.9185,3857.5,3857.4,2.2518]
[1761917134637,5.9185,3857.5,3856.9,15.5484514]
[1761917134638,2.2405,3857.0,3856.9,15.5484514]
[1761917134937,3.6475,3857.0,3856.9,56.3484514]
[1761917135142,5.9185,3857.5,3857.4,2.2518]
[1761917135343,5.9185,3857.5,3857.4,2.94685824]
[1761917135529,5.92032521,3857.5,3857.4,2.94685824]
[1761917135735,4.5115,3857.4,3857.3,0.69505824]
[1761917135941,4.5115,3857.4,3856.9,51.7823514]
[1761917135942,4.5115,3857.3,3857.2,2.94685824]
[1761917136235,3.2078,3857.3,3857.0,0.92674433]
[1761917136441,8.0301,3857.0,3856.9,54.72984433]
[1761917136642,9.4371,3857.0,3856.9,53.8031]
[1761917137536,5.7591,3857.0,3856.9,53.8031]
[1761917137738,5.92032521,3857.5,3857.4,2.2518]
[1761917138246,9.43892521,3857.5,3857.4,2.2518]
[1761917138947,8.0301,3857.3,3857.2,2.94658175]
[1761917139148,8.0301,3857.3,3857.2,2.2518]
[1761917139348,8.0301,3857.3,3857.2,2.94654948]
[1761917139649,8.0301,3857.3,3857.2,0.69474948]
[1761917141241,8.0481,3857.2,3857.1,0.69474948]
[1761917142545,9.3621,3857.0,3856.9,0.69474948]
[1761917142745,9.3621,3857.0,3856.7,0.92637567]
[1761917142746,1.314,3857.0,3856.7,0.92637567]
[1761917142943,8.0481,3856.8,3856.7,5.48877567]
[1761917143146,8.0481,3856.8,3856.7,46.28877567]
[1761917143540,8.0481,3856.8,3856.7,45.3624]
[1761917143740,5.7232,3856.8,3856.7,45.3624]
[1761917143950,5.7232,3856.8,3856.7,48.4962]
[1761917145756,8.0481,3856.8,3856.7,48.4962]
[1761917146153,3.6317,3857.0,3856.9,2.29]
[1761917146359,6.05142521,3857.5,3857.4,2.2724]
[1761917146851,8.0481,3857.2,3857.1,5.25652781]
[1761917149158,8.0481,3857.2,3857.1,2.96652781]
[1761917149562,8.0481,3857.2,3857.1,2.96614134]
[1761917150561,8.0481,3857.2,3857.1,2.2724]
[1761917151062,8.0481,3857.3,3857.2,4.5624]
[1761917152255,8.0481,3857.1,3857.0,3.19748262]
[1761917153061,8.0481,3857.1,3857.0,12.77548262]
[1761917154368,8.0481,3857.1,3857.0,15.06548262]
[1761917156275,8.0481,3857.1,3857.0,14.1404]
[1761917156662,3.72652521,3857.5,3857.4,2.2724]
[1761917156866,6.05142521,3857.5,3857.4,4.5624]
[1761917157276,6.05142521,3857.5,3857.4,2.2724]
[1761917157277,9.45692521,3857.5,3857.4,2.2724]
[1761917158178,9.45692521,3857.5,3857.4,2.96630291]
[1761917158577,9.45692521,3857.5,3857.4,0.69390291]
[1761917160376,8.0481,3857.4,3857.3,0.92520388]
[1761917161163,8.0481,3857.3,3857.2,0.92520388]
[1761917161373,8.0481,3857.2,3857.1,1.3873514]
[1761917161568,8.0481,3856.9,3856.8,1.3873514]
[1761917162972,8.0481,3856.8,3856.7,1.3873514]
[1761917163279,8.0481,3856.6,3856.5,40.8]
[1761917163678,4.6426,3856.6,3856.5,4.5624]
[1761917163980,4.6426,3856.4,3856.3,1.85424344]
[1761917164280,8.0481,3856.3,3856.2,4.5624]
[1761917164575,1.314,3856.5,3856.2,4.5624]
[1761917164772,9.3621,3856.5,3856.4,4.5624]
[1761917168482,5.7232,3856.5,3856.4,9.55676335]
[1761917168685,4.6426,3856.7,3856.6,4.5624]
[1761917169278,8.0481,3856.7,3856.6,4.5624]
[1761917169484,5.7232,3856.7,3856.6,7.6962]
[1761917169675,3.4055,3857.0,3856.9,5.4238]
[1761917169983,9.3621,3857.0,3856.9,4.5624]
[1761917170283,9.3621,3857.0,3856.9,45.3624]
[1761917171684,9.3621,3857.0,3856.9,40.8]
[1761917172183,7.3831,3856.9,3856.5,3.2078]
[1761917172384,7.3831,3856.6,3856.5,7.5637]
[1761917173085,7.3831,3856.6,3856.5,48.3637]
[1761917173676,7.3831,3856.6,3856.5,3.2078]
[1761917174682,7.3831,3856.6,3856.5,9.42313031]
[1761917178387,5.1582,3857.0,3856.9,3.9344]
[1761917178587,5.1582,3857.0,3856.9,5.32840701]
[1761917178985,1.40882521,3857.5,3857.4,1.9911]
[1761917178986,8.24332521,3857.5,3857.4,1.9911]
[1761917180295,8.24332521,3857.5,3857.4,0.92894318]
[1761917185892,8.24332521,3857.5,3857.4,4.86334318]
[1761917186490,0.00182521,3857.5,3857.4,3.9344]
[1761917186693,0.00182521,3857.5,3857.4,5.3281791]
[1761917186894,6.1981,3858.1,3858.0,3.9344]
[1761917187095,8.1224,3858.1,3858.0,7.86296846]
[1761917187292,2.9903,3858.1,3858.0,17.40596846]
[1761917187591,4.5218,3858.5,3858.0,55.2871]
[1761917187892,1.9243,3858.4,3858.3,3.9344]
[1761917188092,3.8442,3858.4,3858.3,4.86100898]
[1761917188293,4.9146,3858.4,3858.3,4.8639309]
[1761917188597,4.9146,3858.4,3858.3,14.4059309]
[1761917188791,4.9146,3858.4,3858.3,17.4067309]
[1761917189092,6.8345,3858.4,3858.3,13.47932192]
[1761917189395,6.8345,3858.4,3858.3,0.00292192]
[1761917191097,4.9146,3858.4,3858.3,3.93732192]
[1761917191291,3.21033601,3858.5,3858.3,3.93732192]
[1761917191292,0.00253601,3858.5,3858.4,3.9344]
[1761917191499,2.99283601,3858.5,3858.4,6.9352]
[1761917191699,4.91713601,3858.5,3858.4,6.9352]
[1761917192196,7.94953601,3858.5,3858.4,4.85958514]
[1761917192495,7.94953601,3858.5,3858.4,2.91628514]
[1761917192984,1.9243,3858.4,3858.3,0.92810706]
[1761917193190,6.8345,3858.4,3858.3,9.53892192]
[1761917193698,6.8345,3858.4,3858.3,0.00292192]
[1761917194088,6.8345,3858.4,3858.3,1.99402192]
[1761917194701,6.8345,3858.4,3858.3,0.00292192]
[1761917196301,6.8345,3858.4,3857.6,3.2078]
[1761917196302,1.9243,3857.9,3857.8,0.92518514]
[1761917196602,6.8345,3857.4,3857.3,2.91628514]
[1761917196998,2.9903,3857.4,3857.3,6.9352]
[1761917197302,2.9903,3857.4,3857.3,6.93756355]
[1761917197498,4.9146,3857.7,3857.6,1.9433]
[1761917197697,1.9243,3857.7,3857.6,6.9352]
[1761917198094,6.8345,3857.7,3857.6,3.9344]
[1761917198300,7.947,3857.5,3857.4,2.91622874]
[1761917198500,7.947,3857.5,3857.4,10.45412874]
[1761917198701,6.8345,3857.4,3857.3,0.92749229]
[1761917199006,6.8345,3857.4,3857.3,0.00236355]
[1761917199308,6.8345,3857.4,3857.3,0.92749229]
[1761917199508,6.8345,3857.4,3857.3,4.86189229]
[1761917200299,6.8345,3857.4,3857.3,2.91859229]
[1761917200608,6.8345,3857.4,3857.3,0.92749229]
[1761917200794,6.8345,3857.4,3857.3,0.00236355]
[1761917200995,6.8345,3857.4,3857.3,1.99346355]
[1761917201700,3.9126,3857.5,3857.4,1.9643]
[1761917201900,3.9126,3857.4,3857.3,0.00236355]
[1761917202404,6.7357,3857.4,3857.3,0.00236355]
[1761917202708,6.7357,3857.4,3857.3,40.80236355]
[1761917203801,6.7357,3857.4,3857.3,0.00236355]
[1761917210211,6.7357,3857.4,3857.3,6.56306355]
[1761917212617,6.7357,3857.4,3857.3,7.48819229]
[1761917213006,4.7915,3857.4,3857.3,7.48819229]
[1761917213206,4.7915,3857.4,3857.3,6.56306355]
[1761917213609,2.8231,3857.4,3857.3,6.56306355]
[1761917213809,6.7357,3857.4,3857.3,3.92726355]
[1761917214008,6.7357,3857.4,3857.3,4.85009859]
[1761917214212,6.7357,3857.4,3857.3,1.96666355]
[1761917214502,6.7357,3857.4,3857.3,0.00236355]
[1761917215110,6.7357,3857.4,3857.3,1.96666355]
[1761917216009,6.7357,3857.4,3857.3,2.88997339]
[1761917216211,6.7357,3857.4,3857.3,1.96666355]
[1761917219516,6.7357,3857.4,3857.3,0.00236355]
[1761917220312,6.7357,3857.4,3857.3,0.92697337]
[1761917220507,6.7357,3857.4,3857.3,0.00236355]
[1761917221516,16.2397,3857.4,3857.3,1.96666355]
[1761917222010,2.8231,3857.5,3857.4,2.6358]
[1761917222319,1.5392,3857.7,3857.6,6.5607]
[1761917222516,5.1762,3857.9,3857.8,6.5607]
[1761917222814,7.9993,3857.9,3857.8,7.48595933]
[1761917223206,7.9993,3857.9,3857.8,47.3607]
[1761917224007,2.8231,3858.2,3858.1,6.5607]
[1761917224213,4.7915,3858.2,3858.1,6.5607]
[1761917225310,7.9993,3858.4,3858.3,6.5607]
[1761917225517,7.9993,3858.4,3858.3,16.98412668]
[1761917226017,7.9993,3858.4,3858.3,16.0597]
[1761917226215,9.9435,3858.4,3858.3,16.0597]
[1761917226411,9.9435,3858.4,3858.3,16.98435836]
[1761917226606,9.9435,3858.4,3858.3,10.42365836]
[1761917227908,9.9435,3858.4,3858.3,12.38795836]
[1761917228923,9.9435,3858.4,3858.3,16.98435836]
[1761917230020,9.9435,3858.4,3858.3,14.34855836]
[1761917230418,9.9435,3858.4,3858.3,13.4239]
[1761917230819,9.9435,3858.4,3858.3,9.499]
[1761917233310,3.2078,3858.4,3858.3,15.0974]
[1761917233615,5.6073,3858.4,3858.3,15.0974]
[1761917233815,7.4284,3858.4,3858.3,15.0974]
[1761917234922,9.1583,3858.4,3858.3,9.499]
[1761917235311,9.1583,3858.4,3858.3,13.0047]
[1761917237320,9.1583,3858.4,3858.3,9.499]
[1761917237824,9.1583,3858.4,3858.3,11.2404]
[1761917238019,9.1583,3858.4,3858.3,14.9818]
[1761917238822,5.6252,3858.4,3858.3,14.9818]
[1761917239329,7.165,3858.4,3858.3,14.9818]
[1761917239822,1.56903601,3858.5,3858.4,5.0256]
[1761917240034,3.5299,3859.0,3858.9,5.0256]
[1761917240218,3.5299,3859.0,3858.9,14.5056]
[1761917240414,6.7322,3859.0,3858.9,12.5285]
[1761917240615,2.4174,3859.0,3858.9,14.5056]
[1761917240820,3.9572,3859.0,3858.9,14.5056]
[1761917241025,3.95978988,3859.0,3858.9,14.5056]
[1761917241225,3.95978988,3859.0,3858.9,55.3056]
[1761917241622,6.60298988,3859.0,3858.9,50.28]
[1761917244519,6.60298988,3859.0,3858.9,52.2571]
[1761917244723,4.94048988,3859.0,3858.9,52.2571]
[1761917246032,2.41998988,3859.0,3858.9,52.2571]
[1761917246731,0.00258988,3859.0,3858.9,52.2571]
[1761917248226,0.00258988,3859.0,3858.9,53.644689]
[1761917248435,0.00258988,3859.0,3858.9,52.2571]
[1761917249028,2.41998988,3859.0,3858.9,52.2571]
[1761917249243,0.00258988,3859.0,3858.9,53.644689]
[1761917249421,0.00258988,3859.0,3858.9,52.2571]
[1761917251428,0.00258988,3859.0,3858.9,53.644689]
[1761917253334,2.41998988,3859.0,3858.9,53.644689]
[1761917255332,6.60298988,3859.0,3858.9,44.164689]
[1761917255534,9.81078988,3859.0,3858.9,40.8]
[1761917255838,5.6197,3858.7,3858.6,1.5341]
[1761917256130,5.6197,3858.7,3858.6,10.9941]
[1761917256335,5.6197,3858.7,3858.6,51.7941]
[1761917257937,5.6197,3858.7,3858.6,42.18779057]
[1761917258132,5.6197,3858.7,3858.6,41.72533676]
[1761917258739,5.6197,3858.6,3858.5,0.92533676]
[1761917259247,5.6197,3858.6,3858.5,41.72533676]
[1761917259441,5.6197,3858.6,3858.5,40.8]
[1761917259744,5.6197,3858.6,3858.5,41.72544875]
[1761917259947,6.6004,3858.5,3858.4,10.38244875]
[1761917260330,1.6625,3858.5,3858.4,10.38244875]
[1761917260540,6.6004,3858.5,3858.4,10.38244875]
[1761917260838,6.6004,3858.5,3858.4,11.91654875]
[1761917261241,6.6004,3858.5,3858.4,10.38244875]
[1761917261438,9.8082,3858.5,3858.4,10.38244875]
[1761917261640,9.8082,3858.5,3858.4,9.457]
[1761917262340,5.3918,3858.4,3858.3,0.92544875]
[1761917264044,5.3918,3858.1,3858.0,0.92544875]
[1761917264434,6.3896,3858.0,3857.9,0.92544875]
[1761917264838,4.4396,3858.2,3858.1,4.8174]
[1761917265042,4.4396,3858.2,3858.1,3.1643]
[1761917265043,5.9588,3858.2,3858.1,3.1643]
[1761917265248,2.7712,3858.2,3858.1,4.8174]
[1761917266148,2.7712,3858.2,3858.1,5.74284875]
[1761917266446,0.567,3858.2,3858.1,5.74284875]
[1761917267445,0.567,3858.2,3858.1,4.8174]
[1761917267748,2.2042,3858.8,3858.7,4.8174]
[1761917268845,2.2042,3858.8,3858.7,45.6174]
[1761917269044,3.2078,3858.9,3858.7,45.6174]
[1761917269250,7.0804,3858.9,3858.8,4.8174]
[1761917269442,8.5996,3858.9,3858.8,3.1643]
[1761917270544,8.5996,3858.9,3858.8,1.533]
[1761917274456,7.0804,3858.9,3858.8,4.8174]
[1761917275346,7.0804,3858.9,3858.8,3.1643]
[1761917275646,3.8726,3858.9,3858.8,4.8174]
[1761917276853,3.8726,3858.9,3858.8,3.1643]
[1761917277751,5.3918,3858.9,3858.8,3.1643]
[1761917279150,5.3918,3858.9,3858.8,4.8174]
[1761917280057,0.00258988,3859.0,3858.9,4.8174]
[1761917280355,5.3918,3858.8,3858.7,41.72506378]
[1761917281057,5.3918,3858.8,3858.7,0.92506378]
[1761917281260,5.3918,3858.6,3858.5,2.45806378]
[1761917281463,5.3918,3858.6,3858.5,11.88906378]
[1761917281652,5.3918,3858.6,3858.5,52.68906378]
[1761917281853,5.3918,3858.6,3858.5,11.88906378]
[1761917282457,5.3918,3858.6,3858.5,10.964]
[1761917282757,5.3918,3858.6,3858.5,11.8882412]
[1761917283158,5.3918,3858.6,3858.5,13.5195412]
[1761917283349,3.8726,3858.6,3858.5,15.1726412]
[1761917283659,3.8726,3858.6,3858.5,14.2484]
[1761917284859,2.2042,3858.6,3858.5,14.2484]
[1761917285455,2.2042,3858.6,3858.5,15.63599567]
[1761917285660,3.8726,3858.6,3858.5,56.43599567]